Cogmind - Beta 13 @@@ ROGUE MODE // 2024.04.28 @ 01:15:30 Player: lav Result: Destroyed by as-09246 with Assembled F-torch Performance ------------- Evolutions (0) 0 Regions Visited (2) 400 Robots Destroyed (18) 90 Value Destroyed (362) 362 Prototype IDs (2) 40 Alien Tech Used (0) 0 Bonus (0) 0 TOTAL SCORE: 892 Bonus ------- None Cogmind --------- Core Integrity 0/250 Matter 202/300 Energy 99/100 System Corruption 2% Temperature Cool (20) Movement Core (350) Ox6 Location -10/Mines Parts ------- > --- POWER (1) -------- (None) > --- PROPULSION (2) --- (None) > --- UTILITY (2) ------ Large Storage Unit > --- WEAPON (2) ------- Small Laser > --- INVENTORY (15) --- Light Nuclear Core Wheel Large Matter Pod (26) Sensor Array Peak State ------------ > --- POWER ------------ Light Nuclear Core > --- PROPULSION ------- Aluminum Leg Aluminum Leg > --- UTILITY ---------- Small Storage Unit Improved Terrain Scanner > --- WEAPON ----------- Small Laser Grenade Launcher > --- INVENTORY -------- Ion Engine Light Ion Engine Light Treads Light Treads Wheel Large Matter Pod Sensor Array Small Laser [Rating: 11] Favorites ----------- Power Ion Engine Engine Ion Engine Power Core Light Nuclear Core Propulsion Light Treads Treads Light Treads Leg Aluminum Leg Wheel Wheel Utility Improved Terrain Scanner Device Improved Terrain Scanner Storage Small Storage Unit Weapon Small Laser Energy Gun Small Laser Launcher Grenade Launcher Special Weapon Mining Laser Special Melee Weapon Datajack Build | -11 -10 -10 ------- Run | Yrd Mat Min Slots Evolved . | . . . Power . | . . . Propulsion . | . . . Utility . | . . . Weapon . | . . . Parts Attached 24 | 9 14 1 Power 4 | 2 2 . Engine 3 | 2 1 . Core 1 | . 1 . Reactor . | . . . Propulsion 7 | 3 4 . Treads 4 | . 4 . Leg 2 | 2 . . Wheel 1 | 1 . . Hover . | . . . Flight . | . . . Utility 5 | 2 3 . Device 3 | 1 2 . Storage 2 | 1 1 . Processor . | . . . Hackware . | . . . Protection . | . . . Artifact . | . . . Weapon 8 | 2 5 1 Energy Gun 4 | 2 2 . Energy Cannon . | . . . Ballistic Gun . | . . . Ballistic Cannon . | . . . Launcher 1 | . 1 . Special Weapon 2 | . 1 1 Impact Weapon . | . . . Slashing Weapon . | . . . Piercing Weapon . | . . . Special Melee Weapon 1 | . 1 . Unidentified Prototypes . | . . . Parts Lost 6 | . . 6 Power 1 | . . 1 Propulsion 2 | . . 2 Utility 1 | . . 1 Weapon 2 | . . 2 Highest Loss Streak 5 | . . 5 To Critical Strikes . | . . . Average Slot Usage (%) 84 | . 85 76 Engine 7 | . 7 8 Core 3 | . 4 . Treads 15 | . 14 23 Leg 10 | . 12 . Device 11 | . 12 9 Storage 14 | . 14 14 Energy Gun 13 | . 13 14 Launcher 3 | . 3 . Special Melee Weapon 2 | . 1 6 Naked Turns . | . . . Heaviest Build 28 | 13 28 28 Greatest Support 40 | 20 40 40 Greatest Overweight (x) 7 | . 7 6 Average Overweight (x) . | . . . Largest Inventory Capacity 15 | 8 15 15 Average Capacity 11 | 7 11 15 Most Carried 10 | 5 10 5 Average Carried 5 | 2 6 4 Final Capacity 15 | 8 15 15 Final Carried 5 | 4 5 4 Class Distribution -------------------- 100% | Mutant Dominant Class ---------------- Mutant | -10/Materials Mutant | -10/Mines Resources | -11 -10 -10 ----------- Run | Yrd Mat Min Matter Collected 479 | 267 206 6 Remotely . | . . . Salvage Created 339 | 77 248 14 Parts 27 | 8 19 . Haulers Intercepted . | . . . Recyclers Shooed . | . . . Parts Field Recycled . | . . . Retrieved Matter . | . . . Parts Self-Destructed . | . . . Prevented . | . . . Kills | -11 -10 -10 ------- Run | Yrd Mat Min Combat Hostiles Destroyed 9 | . 8 1 Guns 4 | . 3 1 AOE 5 | . 5 . Classes Destroyed 7 | 2 4 1 Worker 4 | 2 2 . Tunneler 2 | 2 . . Recycler 1 | . 1 . Watcher 3 | . 3 . Swarmer 2 | . 2 . Grunt 6 | . 6 . Assembled 1 | . . 1 Best Kill Streak 5 | 2 5 1 Combat Bots Only 3 | . 3 1 Max Kills in Single Turn 2 | 1 2 1 Gunslinging . | . . . Exploded 2 | . 2 . Melee . | . . . Uniques/NPCs Destroyed . | . . . Combat | -11 -10 -10 -------- Run | Yrd Mat Min Hostile Shots Fired 92 | . 41 51 Missed 32 | . 18 14 Damage Taken 928 | . 374 554 Core 251 | . 115 136 Absorbed by Shields . | . . . Core Remaining (%) 100 | 100 . . Volleys Fired 54 | 10 33 11 Largest 2 | 2 2 2 Hottest 140 | 80 80 140 Shots Fired 85 | 20 53 12 Gun 69 | 20 38 11 Cannon . | . . . Launcher 15 | . 15 . Special 1 | . . 1 Kinetic . | . . . Thermal 70 | 20 38 12 Explosive 15 | . 15 . Electromagnetic . | . . . Robot Hit Streak 8 | 4 8 4 Robot Miss Streak 5 | 2 5 3 Penetration Max . | . . . Secondary Targets . | . . . Shots Hit Robots 45 | 14 27 4 Core Hits 32 | 4 25 3 Critical Kills . | . . . Critical Parts Destroyed . | . . . Critical Strikes . | . . . Melee Attacks . | . . . Impact . | . . . Slashing . | . . . Piercing . | . . . Sneak Attacks . | . . . Combat Hostiles . | . . . Follow-up Attacks . | . . . Damage Inflicted 1120 | 151 925 44 Guns 398 | 151 203 44 Cannons . | . . . Explosions 722 | . 722 . Melee . | . . . Ramming . | . . . Kinetic . | . . . Thermal 398 | 151 203 44 Explosive 722 | . 722 . Electromagnetic . | . . . Impact . | . . . Slashing . | . . . Piercing . | . . . Highest Corruption 2 | . . 2 Average Corruption 2 | . . 2 Corruption Purged . | . . . Corruption Blocked . | . . . Overload Shots . | . . . Overflow Damage . | . . . Projectiles . | . . . Explosions . | . . . Melee . | . . . Knockbacks . | . . . Impact . | . . . Kinetic . | . . . Secondary . | . . . Self-Inflicted Damage 99 | . 99 . Shots 3 | . 3 . Rammed 3 | . 1 2 Targets Rammed 3 | . 1 2 Kicked . | . . . Crushed . | . . . Highest Temperature 69 | 54 69 20 Average Temperature 19 | 23 19 10 Received Heat Transfer 425 | . 165 260 Siege Activations . | . . . Robots Corrupted . | . . . Combat Hostiles . | . . . Parts Fried . | . . . Impact Corruptions . | . . . Robots Melted . | . . . Combat Hostiles . | . . . Parts Melted 1 | 1 . . Heat Transferred 900 | 350 450 100 Parts Sabotaged . | . . . Parts Stolen . | . . . Parts Stripped . | . . . Power Chain Reactions . | . . . Alert | -11 -10 -10 ------- Run | Yrd Mat Min Peak Influence 391 | 20 391 34 Initial 19 | . 13 19 Average 116 | 10 153 12 Maximum Alert Level 1 | . 1 . Low Security (%) 64 | 100 52 100 Level 1 35 | . 47 . Level 2 . | . . . Level 3 . | . . . Level 4 . | . . . Level 5 . | . . . High Security . | . . . Max Security . | . . . Squads Dispatched 2 | . 2 . Investigation . | . . . Extermination . | . . . Reinforcement 2 | . 2 . Assault . | . . . Garrison . | . . . Intercept . | . . . Searches Triggered . | . . . Construction Impeded . | . . . Haulers Reinforced . | . . . Active Scanning Responses . | . . . Cargo Convoy Interrupts . | . . . Stealth | -11 -10 -10 --------- Run | Yrd Mat Min Distress Signals 1 | . 1 . Communications Jammed . | . . . Distress Signals . | . . . Times Spotted 25 | . 15 10 Peak Tracking Total 10 | . 3 10 Tactical Retreats 3 | . . 3 Traps | -11 -10 -10 ------- Run | Yrd Mat Min Traps Triggered 4 | . 4 . Indirectly . | . . . Trap Hack Attempts . | . . . Triggered . | . . . Disarmed . | . . . Reprogrammed . | . . . Reused . | . . . Traps Extracted . | . . . Installed . | . . . Triggered . | . . . Machines | -11 -10 -10 ---------- Run | Yrd Mat Min Machines Disabled 4 | . 4 . Max in Single Turn 2 | . 2 . Machines Repaired . | . . . Machines Dismantled . | . . . Machines Sabotaged . | . . . Overloaded Fab Kills . | . . . Hacking | -11 -10 -10 --------- Run | Yrd Mat Min Machines Accessed 5 | . 5 . Terminals 4 | . 4 . Fabricators . | . . . Repair Stations . | . . . Recycling Units 1 | . 1 . Scanalyzers . | . . . Garrison Access . | . . . Total Hacks 16 | . 16 . Successful 5 | . 5 . Failed 11 | . 11 . Catastrophic 3 | . 3 . Database Lockouts . | . . . Manual . | . . . Terminals 15 | . 15 . Fabricators . | . . . Repair Stations . | . . . Recycling Units 1 | . 1 . Scanalyzers . | . . . Garrison Access . | . . . Terminal Hacks 4 | . 4 . Prototype ID Bank 1 | . 1 . Dispatch Records 1 | . 1 . Maintenance Status 1 | . 1 . Surveillance Status 1 | . 1 . Fabricator Hacks . | . . . Repair Station Hacks . | . . . Recycling Unit Hacks 1 | . 1 . Report Inventory 1 | . 1 . Scanalyzer . | . . . Garrison Access Hacks . | . . . Unauthorized Hacks . | . . . Terminals . | . . . Fabricators . | . . . Repair Stations . | . . . Recycling Units . | . . . Scanalyzers . | . . . Garrison Access . | . . . Data Cores Recovered . | . . . Used . | . . . Hacking Detections 3 | . 3 . Full Trace Events 1 | . 1 . Feedback Events . | . . . Feedback Blocked . | . . . Robot Schematics Acquired . | . . . Robots Built . | . . . Authchips . | . . . Time . | . . . Total Robot Build Rating . | . . . Part Schematics Acquired . | . . . Parts Built . | . . . Authchips . | . . . Time . | . . . Total Part Build Rating . | . . . Parts Repaired . | . . . Time . | . . . Parts Recycled . | . . . Recycled Matter . | . . . Retrieved Matter . | . . . Retrieved Components . | . . . Parts Scanalyzed . | . . . Part Schematics Acquired . | . . . Parts Damaged . | . . . Bothacking | -11 -10 -10 ------------ Run | Yrd Mat Min Used RIF Installer . | . . . Robots Hacked . | . . . Non-combat . | . . . Combat . | . . . Robot Hacks Applied . | . . . Relay Couplers Released . | . . . Fabnet Peak Effective % . | . . . Robots Rewired . | . . . Allies Hacked . | . . . Hacks Repelled . | . . . Allies | -11 -10 -10 -------- Run | Yrd Mat Min Total Allies . | . . . Largest Group . | . . . Highest-Rated Group . | . . . Highest-Rated Ally . | . . . Total Orders . | . . . Ally Attacks . | . . . Total Damage . | . . . Kills . | . . . Allies Corrupted . | . . . Allies Melted . | . . . Intel | -11 -10 -10 ------- Run | Yrd Mat Min Robot Analysis Total . | . . . Derelict Logs Recovered . | . . . Drone Launches . | . . . Drone Recoveries . | . . . Exploration | -11 -10 -10 ------------- Run | Yrd Mat Min Turns Passed 1454 | 207 1078 169 Spaces Moved 873 | 147 648 78 Core 38 | 28 8 2 Treads 407 | . 331 76 Legs 428 | 119 309 . Wheels . | . . . Hover . | . . . Flight . | . . . Fastest Speed 50 | 50 120 160 Average Speed 140 | 106 143 178 Slowest Speed 400 | 120 400 350 Overloaded Moves . | . . . Propulsion Burnouts . | . . . Robots Hopped . | . . . Cave-ins Triggered . | . . . Exploration Rate (%) 37 | 6 90 17 Regions Visited 2 Branch Regions 1 Pre-discovered Areas . | . . . Known Exits Taken . | . . . Unknown Exits Taken 2 | 1 1 . Scrap Searched . | . . . Spaces Dug . | . . . Terrain Destroyed 37 | . 36 1 Melee . | . . . Projectile 1 | . . 1 AOE 36 | . 36 . Terrain Rammed . | . . . Walls Destroyed . | . . . Machines Disabled . | . . . Actions | -11 -10 -10 --------- Run | Yrd Mat Min Total 1009 | 175 742 92 Wait 30 | . 30 . Move 871 | 146 647 78 Hop . | . . . Pick Up 22 | 9 13 . Fast Attach 3 | 3 . . Attach 13 | 4 8 1 Detach . | . . . Swap 8 | 2 6 . Drop 5 | 1 4 . Fire 54 | 10 33 11 Melee . | . . . Ram 2 | . . 2 Kick . | . . . Crush 1 | . 1 . Escape Stasis . | . . . Rewire . | . . . Trap . | . . . Miscellaneous . | . . . Route ------- -11/Scrapyard -10/Materials (discovered 5 exits: [*Mat x3] / [*Min x2]) -10/Mines History --------- Turn | Location | Event 24 | -11/Scrapyard | Discovered new exit (range 14) 208 | -11/Scrapyard | Entered Materials 304 | -10/Materials | Build established: Mutant 424 | -10/Materials | Discovered new exit (range 14) 483 | -10/Materials | Discovered new exit (range 9) 731 | -10/Materials | Discovered new exit (range 10) 1112 | -10/Materials | Discovered new exit (range 6) 1262 | -10/Materials | Discovered new exit (range 14) 1286 | -10/Materials | Entered Mines 1353 | -10/Mines | Assembled infested the area 1358 | -10/Mines | Assisted by a Guerilla fighting off Assembled 1377 | -10/Mines | Core integrity fell below 50% 1434 | -10/Mines | Lost 5 parts (1p1n1u2w) 1435 | -10/Mines | Core integrity fell below 20% 1455 | -10/Mines | Destroyed by as-09246 with Assembled F-torch Last Messages --------------- need to get out of here! I've been tracking a group of Assembled to figure out where they're coming from, and they're closing on this area, come on!" 01359_ 41-Q8O(h): "I'll hold them off! Go on ahead or try to find another way!" 01361_ HV Slug penetrates as-40850. 01361_ as-40850 suffers critical hit (Destroy). 01361_ as-40850 destroyed. 01363_ Acquired 6 matter. 01368_ Datajack destroyed. 01383_ Ion Engine destroyed. 01387_ as-60806 destroyed. 01392_ Mining Laser destroyed. 01397_ Imp. Terrain Scanner destroyed. 01397_ System corrupted by crushing effect (+2). 01403_ Lgt. Treads destroyed. 01413_ K-01 Serf collects debris. 01442_ Lgt. Treads destroyed. 01444_ Slammed into as-09246. Map ----- +----------------------------------------------------+ | ?????????????????????????????????????????????????? | | ?????????????????????????????????????????????????? | | ?????????????????????????????????????????????????? | | ?????????????????????????????????????????????????? | | ?????????????????????????????????????????????????? | | ?????????????????????????????????????????????????? | | ??? ?????????????????????????????????????????????? | | ?????????????????????????????????????????????????? | | ???????????????????#?????????????????????????????? | | ?#????????????????#??????????????????????????????? | | ??????###??#?????????????????????????????????????? | | ?????? #?#??????????????????????????????????????? | | ??#???# ##????#??????????????????????????????????? | | ??????# ##???????????????????????????????????????? | | ????### #???????#?????#??????????????????????????? | | ????# # #???#????????????????????????????????????? | | ?????#"%#??????????#?????????????????????????????? | | ??????# ########?????????????????????????????????? | | ????#?# #?#???????????????????????????????? | | ??????######## ####??#???????????????????????????? | | #########????# ## ??????????????????????????????? | | # #????#%"# #??????????????????????????????? | | # #?#??# ## #########??????????????????????? | | # """ #????# ## a#??????????????????????? | | # """ #???## ## ####### #??????????????????????? | | # """ #????# ## ##????#@#??????????????????????? | | # #????# ## #?#?#?# #??????????????????????? | | # """ #????# #??#??# #?#????????????????????? | | # """ #????#### #?????# #??????????????????????? | | # """ #???????# #??#??# #??????????????????????? | | # #?????### #?????# ??????????????????????? | | # """ #???### ####### #??????????????????????? | | # """ #??## ##?????????????????????? | | # """ #### #?????????????????????? | | # ### ??????????????????? | | # ### #?? ??????????????????? | | #########?# ? ???????????????????? | | ??????????## # ##?????????????????????? | | ????????#??### #??????????????????????? | | ?????????????## #####??????????????????????? | | ??????????????## #####??????????????????????????? | | ???????????????####??????????????????????????????? | | ????#???#????????????????????????????????????????? | | ?????????????????????????????????????????????????? | | ?????????????????????????????????????????????????? | | | | | | | | | | | +----------------------------------------------------+ Best States ------------- Heat Dissipation 25 Energy Generation 14 Energy Capacity 250 Matter Stores 300 Matter Capacity 300 Sight Range 16 Robot Scan Range 14 Terrain Scan Range 16 Terrain Scan Density 10 Evasion (%) 55 Recoil Reduction 2 Item Schematics ----------------- None Robot Schematics ------------------ None Fabricated ------------ Nothing Alien Tech Used ----------------- None Achievements -------------- None Challenges ------------ None Game ------ Seed FrostMetafieldMagmablaster Manual? 0 Play Time 00:20:41 Cumulative 2.9 hours Start 2024.04.27 @ 21:35:38 End 2024.04.28 @ 01:15:30 Sessions 4 Manual Loads 0 Difficulty Rogue Special Mode None Game No. 8 Rogue 8 Adventurer 0 Explorer 0 Win Type - Total 0 Types 0/0/0/0/0/0/0/0/0 Lore% 2 Gallery% 8 Achievement% 7 Wizard Run 0 Options --------- Layout 1 ASCII 0 Keyboard 0 Movement Mouse Keybinds 0 Fullscreen 1 Font 32/SmallcapsGlow Map View 50x35 Zoom Use 0% Tactical HUD 1 Map Filters NONE Filters NONE Steam 1 RUN: 2ffcee8f-85cb-4097-80f4-490a6ee7d738